bitfinex/quotes_BTCUSD_20250225
["timestamp","ask_amount","ask_price","bid_price","bid_amount"]
[1740516260278,0.169583,88452.0,88451.0,0.07254215]
[1740516260452,0.17000437,88452.0,88451.0,0.07254215]
[1740516260657,0.17000437,88452.0,88451.0,0.00065464]
[1740516261079,0.17000437,88452.0,88451.0,0.07254215]
[1740516261275,0.17000437,88452.0,88451.0,0.00065464]
[1740516261483,0.47000437,88452.0,88451.0,0.07254215]
[1740516261650,0.47100437,88452.0,88451.0,0.07254215]
[1740516262059,0.47500437,88452.0,88451.0,0.07254215]
[1740516262794,0.47500437,88452.0,88451.0,0.07979637]
[1740516263024,0.47400437,88452.0,88451.0,0.07254215]
[1740516263302,0.47700437,88452.0,88451.0,0.07254215]
[1740516263915,0.47000437,88452.0,88451.0,0.07254215]
[1740516264113,0.47300437,88452.0,88451.0,0.07254215]
[1740516264328,0.47700437,88452.0,88451.0,0.07254215]
[1740516264490,0.47300437,88452.0,88451.0,0.07254215]
[1740516264676,0.47400437,88452.0,88451.0,0.07254215]
[1740516264872,0.47700437,88452.0,88451.0,0.07254215]
[1740516265259,0.48000437,88452.0,88451.0,0.07254215]
[1740516266522,0.47300437,88452.0,88451.0,0.07254215]
[1740516266709,0.00342137,88452.0,88451.0,0.07254215]
[1740516266959,0.00742137,88452.0,88451.0,0.087083]
[1740516267101,0.00742137,88452.0,88451.0,0.37041553]
[1740516267306,0.00742137,88452.0,88451.0,1.28184198]
[1740516267529,0.00342137,88452.0,88451.0,1.28184198]
[1740516267848,0.00042137,88452.0,88451.0,1.28184198]
[1740516268023,0.00642137,88452.0,88451.0,1.28184198]
[1740516268430,0.00742137,88452.0,88451.0,1.35734198]
[1740516268635,0.00742137,88452.0,88451.0,1.36914198]
[1740516269357,0.00442137,88452.0,88451.0,1.36914198]
[1740516270215,0.00442137,88452.0,88451.0,1.19955698]
[1740516270419,0.00142137,88452.0,88451.0,1.36914198]
[1740516270738,0.00042137,88452.0,88451.0,1.36914198]
[1740516271260,0.00242137,88452.0,88451.0,1.36914198]
[1740516271477,0.16956,88464.0,88455.0,0.3]
[1740516271707,0.169558,88465.0,88457.0,0.169572]
[1740516271863,0.169557,88466.0,88465.0,0.08642836]
[1740516272064,0.20336634,88482.0,88481.0,0.07188751]
[1740516273100,0.226037,88481.0,88461.0,0.01454085]
[1740516273422,0.226037,88481.0,88461.0,0.08642836]
[1740516273423,0.226083,88464.0,88461.0,0.08642836]
[1740516273573,0.16956,88465.0,88462.0,0.33964085]
[1740516273772,0.16956,88465.0,88464.0,0.07188751]
[1740516273955,0.16956,88465.0,88464.0,0.08642836]
[1740516274398,0.226061,88472.0,88465.0,0.01454085]
[1740516274584,0.226049,88477.0,88466.0,0.07188751]
[1740516274818,0.395584,88477.0,88476.0,0.07188751]
[1740516275929,0.169552,88469.0,88468.0,0.07188751]
[1740516276442,0.395606,88472.0,88471.0,0.07188751]
[1740516276644,0.395606,88472.0,88471.0,0.07917626]
[1740516277341,0.169543,88474.0,88471.0,0.07917626]
[1740516277659,0.169545,88472.0,88471.0,0.07917626]
[1740516278344,0.171545,88472.0,88471.0,0.07917626]
[1740516278923,0.173545,88472.0,88471.0,0.07917626]
[1740516279792,0.002,88472.0,88471.0,0.07917626]
[1740516279997,0.3,88480.0,88479.0,0.07188751]
[1740516280199,0.469529,88480.0,88479.0,0.07188751]
[1740516280436,0.169543,88473.0,88472.0,0.3251]
[1740516281543,0.3,88475.0,88460.0,0.00012654]
[1740516281771,0.0476,88479.0,88432.0,0.3251]
[1740516281772,0.3,88447.0,88432.0,0.3251]
[1740516281997,0.469612,88437.0,88428.0,0.0008485]
[1740516282410,0.3,88436.0,88406.0,0.3251]
[1740516282583,0.08455147,88437.0,88406.0,0.07188751]
[1740516282584,0.169669,88407.0,88406.0,0.07188751]
[1740516282797,0.169665,88409.0,88408.0,0.07188751]
[1740516282999,0.169665,88409.0,88408.0,0.07907626]
[1740516283342,0.169665,88409.0,88408.0,0.07169374]
[1740516283982,0.20528865,88409.0,88408.0,0.07169374]
[1740516284309,0.20228865,88409.0,88408.0,0.07169374]
[1740516284504,0.20528865,88409.0,88408.0,0.07169374]
[1740516284721,0.03562365,88409.0,88408.0,0.07169374]
[1740516284894,0.03562365,88409.0,88408.0,0.09587335]
[1740516285098,0.20528865,88409.0,88408.0,0.07169374]
[1740516285293,0.03562365,88409.0,88408.0,0.07169374]
[1740516285730,0.169642,88421.0,88420.0,0.07169374]
[1740516286113,0.20218572,88421.0,88420.0,0.07169374]
[1740516286460,0.03254372,88421.0,88420.0,0.07886311]
[1740516286898,0.02830626,88466.0,88420.0,0.07886311]
[1740516286899,0.17791936,88440.0,88439.0,0.07169374]
[1740516287105,0.17791936,88440.0,88439.0,0.39679374]
[1740516287315,0.17791936,88440.0,88439.0,0.39479374]
[1740516287515,0.17791936,88440.0,88439.0,0.43427311]
[1740516287847,0.169606,88440.0,88439.0,0.43427311]
[1740516288199,0.169606,88440.0,88439.0,0.43469448]
[1740516288400,0.169606,88440.0,88439.0,0.43169448]
[1740516288790,0.20228081,88440.0,88439.0,0.43169448]
[1740516288984,0.20228081,88440.0,88439.0,0.42869448]
[1740516289414,0.50228081,88440.0,88439.0,0.32552137]
[1740516289773,0.50328081,88440.0,88439.0,0.32552137]
[1740516290256,0.20328081,88440.0,88439.0,0.39121511]
[1740516290487,0.20228081,88440.0,88439.0,0.38921511]
[1740516290654,0.20328081,88440.0,88439.0,0.38921511]
[1740516290862,0.20428081,88440.0,88439.0,0.38921511]
[1740516291082,0.20328081,88440.0,88439.0,0.38921511]
[1740516291504,0.20328081,88440.0,88439.0,0.32552137]
[1740516291505,0.20828081,88440.0,88439.0,0.32552137]
[1740516291722,0.20328081,88440.0,88439.0,0.38921511]
[1740516291928,0.20228081,88440.0,88439.0,0.32552137]
[1740516292186,0.20628081,88440.0,88439.0,0.38921511]
[1740516292434,0.21128081,88440.0,88439.0,0.38921511]
[1740516292933,0.20628081,88440.0,88439.0,0.06411511]
[1740516293195,0.03667481,88440.0,88439.0,0.07052662]
[1740516293459,0.004,88440.0,88439.0,0.08506747]
[1740516293676,0.008,88440.0,88439.0,0.08506747]
[1740516293905,0.008,88440.0,88439.0,0.198815]
[1740516294132,0.008,88440.0,88439.0,0.69510569]
[1740516294372,0.004,88440.0,88439.0,0.693523]
[1740516294599,0.005,88440.0,88439.0,0.523915]
[1740516295035,0.004,88440.0,88439.0,0.523915]
[1740516295243,0.004,88440.0,88439.0,0.525915]
[1740516295409,0.004,88440.0,88439.0,0.537715]
[1740516295635,0.2537887,88448.0,88440.0,0.01454085]
[1740516295839,0.226117,88450.0,88447.0,0.06369374]
[1740516296011,0.395704,88450.0,88449.0,0.07423459]
[1740516296216,0.42313966,88450.0,88449.0,0.07423459]
[1740516296617,0.19702266,88450.0,88449.0,0.07423459]
[1740516296837,0.19702266,88450.0,88449.0,0.07223459]
[1740516297079,0.19702266,88450.0,88449.0,0.07963805]
[1740516297080,0.169587,88450.0,88449.0,0.07963805]
[1740516297563,0.172587,88450.0,88449.0,0.07963805]
[1740516297752,0.006,88450.0,88449.0,0.07963805]
[1740516298001,0.003,88450.0,88449.0,0.07963805]
[1740516298192,0.03086713,88450.0,88449.0,0.07963805]
[1740516298504,0.003,88450.0,88449.0,0.07963805]
[1740516298735,0.003,88450.0,88449.0,0.40473805]
[1740516299403,0.03127754,88450.0,88449.0,0.40473805]
[1740516299633,0.19786454,88450.0,88449.0,0.40473805]
[1740516299857,0.19956034,88450.0,88449.0,0.40473805]
[1740516300082,0.02997334,88450.0,88449.0,0.40473805]
[1740516300309,0.19956034,88450.0,88449.0,0.40473805]
[1740516300780,0.19956034,88450.0,88449.0,0.40573805]
[1740516301230,0.19956034,88450.0,88449.0,0.40473805]
[1740516301691,0.02997334,88450.0,88449.0,0.40473805]
[1740516301938,0.0016958,88450.0,88449.0,1.05508558]
[1740516302174,0.0016958,88450.0,88449.0,1.22467458]
[1740516302175,0.0026958,88450.0,88449.0,1.22467458]
[1740516302407,0.0026958,88450.0,88449.0,1.06688558]
[1740516302749,0.0026958,88450.0,88449.0,1.23647458]
[1740516303162,0.0016958,88450.0,88449.0,1.31757458]
[1740516303341,0.0016958,88450.0,88449.0,1.14798558]
[1740516303708,0.0016958,88450.0,88449.0,1.31857458]
[1740516303901,0.0026958,88450.0,88449.0,1.32357458]
[1740516304333,0.1732828,88450.0,88449.0,1.00069615]
[1740516304518,0.1732828,88450.0,88449.0,0.3361]
[1740516304651,0.50074215,88450.0,88449.0,0.3361]
[1740516304846,0.50074215,88450.0,88449.0,0.011]
[1740516305306,0.33115515,88450.0,88449.0,0.011]
[1740516305506,0.50074215,88450.0,88449.0,0.06769374]
[1740516305728,0.50074215,88450.0,88449.0,0.07446311]
[1740516306136,0.03015515,88450.0,88449.0,0.40810396]
[1740516306307,0.0016958,88450.0,88449.0,0.68644049]
[1740516306523,0.0016958,88450.0,88449.0,1.65862627]
[1740516306720,0.0016974,88476.0,88475.0,0.22623274]
[1740516306931,0.0016974,88476.0,88475.0,0.67962112]
[1740516307129,0.0016974,88476.0,88475.0,1.04668212]
[1740516307356,0.0016974,88476.0,88475.0,1.21622112]
[1740516307562,0.0016974,88476.0,88475.0,1.34322112]
[1740516307912,0.0016974,88476.0,88475.0,1.35498112]
[1740516308255,0.0016974,88476.0,88475.0,1.34322112]
[1740516308578,0.4712344,88476.0,88475.0,0.38179374]
[1740516308733,0.4712344,88476.0,88475.0,0.3251]
[1740516309386,0.4712344,88476.0,88475.0,0.36327937]
[1740516309584,0.4712344,88476.0,88475.0,0.3251]
[1740516309960,0.4712344,88476.0,88475.0,0.3261]
[1740516310318,0.4712344,88476.0,88475.0,0.3301]
[1740516310579,0.4712344,88476.0,88475.0,0.68462112]
[1740516310580,0.0016974,88476.0,88475.0,0.68462112]
[1740516310810,0.1742344,88476.0,88475.0,0.39633459]
[1740516311042,0.0016974,88476.0,88475.0,0.67962112]
[1740516311276,0.0066974,88476.0,88475.0,0.67962112]
[1740516311532,0.0066974,88476.0,88475.0,0.72892112]
[1740516311772,0.0066974,88476.0,88475.0,0.55938212]
[1740516312249,0.0066974,88476.0,88475.0,1.26552112]
[1740516312499,0.0066974,88476.0,88475.0,1.34432112]
[1740516312889,0.1762344,88476.0,88475.0,0.98998838]
[1740516313085,0.1732344,88476.0,88475.0,0.91839374]
[1740516313567,0.0036974,88476.0,88475.0,1.21622112]
[1740516313786,0.0046974,88476.0,88475.0,1.22322112]
[1740516314230,0.0036974,88476.0,88475.0,1.21922112]
[1740516314471,0.17095204,88476.0,88475.0,1.04668212]
[1740516314705,0.00141504,88476.0,88475.0,1.22222112]
[1740516314936,0.00141504,88476.0,88475.0,1.21922112]
[1740516316107,0.00058711,88482.0,88481.0,0.32622074]
[1740516316369,0.00071356,88482.0,88481.0,0.44491839]
[1740516316574,0.00071356,88482.0,88481.0,0.54491839]
[1740516317339,0.00071356,88482.0,88481.0,1.08039765]
[1740516317543,0.00071356,88482.0,88481.0,1.30661839]
[1740516318373,0.00171356,88482.0,88481.0,1.31161839]
[1740516319784,0.00171356,88482.0,88481.0,1.05168212]
[1740516319991,0.47123956,88482.0,88481.0,0.3371]
[1740516320199,0.47223956,88482.0,88481.0,0.012]
[1740516320978,0.169547,88471.0,88456.0,0.05669374]
[1740516321187,0.169547,88471.0,88446.0,0.05669374]
[1740516321188,0.469587,88450.0,88446.0,0.05669374]
[1740516321393,0.469587,88450.0,88439.0,0.05669374]
[1740516321594,0.469587,88450.0,88432.0,0.05669374]
[1740516321789,0.469587,88450.0,88438.0,0.15725025]
[1740516321947,0.469587,88450.0,88449.0,0.05754154]
[1740516322149,0.469587,88450.0,88449.0,0.06329569]
[1740516322548,0.169572,88458.0,88457.0,0.05669374]
[1740516323034,0.469572,88458.0,88457.0,0.05669374]
[1740516323376,0.169587,88450.0,88449.0,0.38239569]
[1740516323571,0.3,88461.0,88449.0,0.38239569]
[1740516323883,0.226065,88470.0,88449.0,0.38239569]
[1740516324081,0.3,88469.0,88460.0,0.04569374]
[1740516324306,0.00012642,88479.0,88465.0,0.04569374]
[1740516324504,0.16955,88469.0,88468.0,0.04569374]
[1740516324738,0.00012642,88479.0,88473.0,0.04569374]
[1740516324902,0.16965742,88479.0,88478.0,0.04569374]
[1740516325456,0.16965742,88479.0,88478.0,0.04069374]
[1740516325666,0.16965742,88479.0,88476.0,0.04069374]
[1740516325901,0.16965742,88479.0,88468.0,0.3251]
[1740516325902,0.469543,88473.0,88472.0,0.04069374]
[1740516326485,0.3,88473.0,88472.0,0.03869374]
[1740516326683,0.3,88473.0,88472.0,0.07507311]
[1740516326887,0.00012642,88479.0,88478.0,0.03869374]
[1740516327032,0.16965742,88479.0,88478.0,0.03869374]
[1740516327233,0.46965742,88479.0,88478.0,0.03869374]
[1740516327745,0.46965742,88479.0,88478.0,0.002]
[1740516327951,0.169577,88455.0,88454.0,0.3251]
[1740516328149,0.469577,88455.0,88454.0,0.3251]
[1740516328354,0.469587,88450.0,88449.0,0.0008478]
[1740516328564,0.469587,88450.0,88449.0,0.03954154]
[1740516329617,0.169562,88463.0,88462.0,0.03669374]
[1740516329804,0.169587,88450.0,88449.0,0.0008478]
[1740516330004,0.469587,88450.0,88449.0,0.0008478]
[1740516330405,0.171587,88450.0,88449.0,0.03754154]
[1740516330583,0.171587,88450.0,88449.0,0.03605228]
[1740516330959,0.002,88450.0,88449.0,0.03605228]
[1740516331169,0.002,88450.0,88437.0,0.0015828]
[1740516331170,0.169589,88449.0,88448.0,0.03605228]
[1740516331342,0.169589,88449.0,88448.0,0.36115228]
[1740516331908,0.002,88450.0,88448.0,0.36115228]
[1740516331909,0.002,88450.0,88449.0,0.22018213]
[1740516332147,0.002,88450.0,88449.0,0.46700302]
[1740516332310,0.16956,88465.0,88449.0,0.30840518]
[1740516332512,0.02812419,88485.0,88468.0,0.03605228]
[1740516332742,0.02812419,88485.0,88472.0,0.03605228]
[1740516332743,0.169543,88473.0,88472.0,0.03605228]
[1740516332965,0.169543,88473.0,88472.0,0.07216751]
[1740516333113,0.02812419,88485.0,88481.0,0.03605228]
[1740516333302,0.0827,88517.0,88481.0,0.05059313]
[1740516333503,0.226022,88487.0,88486.0,0.03605228]
[1740516333749,1.02848369,88500.0,88492.0,0.03605228]
[1740516333917,0.169504,88493.0,88492.0,0.03605228]
[1740516334135,1.02861016,88500.0,88492.0,0.03205228]
[1740516334312,0.225999,88496.0,88495.0,0.03205228]
[1740516334517,1.19810116,88500.0,88499.0,0.02805228]
[1740516334738,1.49810116,88500.0,88499.0,0.02805228]
[1740516334936,1.19810116,88500.0,88499.0,0.02805228]
[1740516335138,1.19810116,88500.0,88499.0,0.06236751]
[1740516335340,0.169497,88497.0,88496.0,0.02705228]
[1740516335539,0.3,88494.0,88493.0,0.02705228]
[1740516335739,0.469503,88494.0,88493.0,0.02705228]
[1740516335974,0.169503,88494.0,88493.0,0.06344351]
[1740516336351,0.169503,88494.0,88493.0,0.07431307]
[1740516336568,0.76689599,88500.0,88499.0,0.02705228]
[1740516336771,0.7384123,88500.0,88499.0,0.0895752]
[1740516336990,0.7384123,88500.0,88499.0,0.10044476]
[1740516337271,0.7384123,88500.0,88499.0,0.05246269]
[1740516337496,0.7384123,88500.0,88499.0,0.05146269]
[1740516337693,0.7384123,88500.0,88499.0,0.22095569]
[1740516337898,0.7384123,88500.0,88499.0,0.05146269]
[1740516338101,0.7384123,88500.0,88499.0,0.22095569]
[1740516338505,0.7384123,88500.0,88499.0,0.33470322]
[1740516338702,0.7384123,88500.0,88499.0,0.33570322]
[1740516339597,0.7384123,88500.0,88499.0,0.33470322]
[1740516339837,1.2079033,88500.0,88499.0,0.01586956]
[1740516340048,1.2079033,88500.0,88499.0,0.005]
[1740516340671,1.2079033,88500.0,88499.0,0.03105228]
[1740516340877,1.0384123,88500.0,88499.0,0.03105228]
[1740516341088,1.2079033,88500.0,88499.0,0.03105228]
[1740516341312,0.7384123,88500.0,88499.0,0.20554528]
[1740516341659,0.7384123,88500.0,88499.0,0.06920731]
[1740516341785,0.7434123,88500.0,88499.0,0.03409084]
[1740516341989,0.7434123,88500.0,88499.0,0.20358384]
[1740516342312,0.7444123,88500.0,88499.0,0.21712469]
[1740516342519,0.7454123,88500.0,88499.0,0.33087222]
[1740516343133,0.7454123,88500.0,88499.0,0.05939169]
[1740516343473,0.7454123,88500.0,88499.0,0.09132129]
[1740516343595,0.7454123,88500.0,88499.0,0.17901654]
[1740516343794,0.5092618,88500.0,88499.0,0.34263222]
[1740516344065,0.5032618,88500.0,88499.0,0.34263222]
[1740516344366,0.5032618,88500.0,88499.0,0.34863222]
[1740516344367,0.5042618,88500.0,88499.0,0.34863222]
[1740516344502,0.5032618,88500.0,88499.0,0.34863222]
[1740516344707,0.5032618,88500.0,88499.0,0.35563222]
[1740516344970,0.50320648,88500.0,88499.0,0.35563222]
[1740516345757,0.50320648,88500.0,88499.0,0.34859366]
[1740516345957,0.50320648,88500.0,88499.0,0.35563222]
[1740516348221,0.50320648,88500.0,88499.0,0.17437922]
[1740516348427,0.50320648,88500.0,88499.0,0.04609084]
[1740516348428,0.97269748,88500.0,88499.0,0.04609084]
[1740516348674,0.97269748,88500.0,88499.0,0.013]
[1740516348880,0.169526,88482.0,88462.0,0.01176]
[1740516349159,0.169526,88482.0,88478.0,0.02605228]
[1740516349160,0.469526,88482.0,88478.0,0.02605228]
[1740516349312,0.469526,88482.0,88481.0,0.02689978]
[1740516349762,0.169508,88491.0,88490.0,0.02605228]
[1740516349986,0.469508,88491.0,88490.0,0.02605228]
[1740516350950,0.471508,88491.0,88490.0,0.02605228]
[1740516351364,0.002,88491.0,88490.0,0.32385066]
[1740516351588,0.002,88491.0,88490.0,0.37583743]
[1740516352255,0.002,88491.0,88490.0,0.38759743]
[1740516352452,0.004,88491.0,88490.0,0.19503515]
[1740516352676,0.004,88491.0,88490.0,0.08128762]
[1740516352878,0.002,88491.0,88490.0,0.21886313]
[1740516353073,1.50490208,88500.0,88499.0,0.02305228]
[1740516353074,1.50390208,88500.0,88499.0,0.02305228]
[1740516353332,1.50390208,88500.0,88499.0,0.03759313]
[1740516353688,1.24003235,88500.0,88499.0,0.10350184]
[1740516354051,0.3,88499.0,88490.0,0.001]
[1740516354228,1.24003235,88500.0,88490.0,0.001]
[1740516354229,0.469508,88491.0,88490.0,0.001]
[1740516354448,0.469526,88482.0,88481.0,0.0008475]
[1740516355458,0.469526,88482.0,88481.0,0.02124826]
[1740516356286,0.473526,88482.0,88481.0,0.02124826]
[1740516357260,0.475526,88482.0,88481.0,0.02124826]
[1740516357515,0.471526,88482.0,88481.0,0.02124826]
[1740516357672,0.473526,88482.0,88481.0,0.02124826]
[1740516358250,0.002,88482.0,88481.0,0.19077526]
[1740516358459,0.002,88482.0,88481.0,0.36074517]
[1740516358651,0.003,88482.0,88481.0,0.37250517]
[1740516358952,0.003,88482.0,88481.0,0.44770517]
[1740516358953,1.003,88482.0,88481.0,0.44770517]
[1740516359517,1.002,88482.0,88481.0,0.44770517]
[1740516359931,0.710133,88482.0,88481.0,0.44770517]
[1740516360136,0.70416476,88482.0,88481.0,0.44770517]
[1740516360470,0.6096943,88482.0,88481.0,0.50602364]
[1740516360814,0.6096943,88482.0,88481.0,0.51302364]
[1740516361054,0.6106943,88482.0,88481.0,0.91302364]
[1740516361221,0.6096943,88482.0,88481.0,0.90602364]
[1740516361423,0.2830133,88482.0,88481.0,0.91302364]
[1740516361632,3e-07,88482.0,88481.0,0.91302364]
[1740516362458,3e-07,88482.0,88481.0,0.81302364]
[1740516362658,3e-07,88482.0,88481.0,0.91302364]
[1740516362864,3e-07,88482.0,88481.0,1.03232364]
[1740516363056,1.24003235,88500.0,88499.0,0.20443461]
[1740516363321,1.24003235,88500.0,88499.0,0.36688214]
[1740516363501,3.5e-07,88500.0,88499.0,0.94528214]
[1740516363818,3.5e-07,88500.0,88499.0,2.44528214]
[1740516364244,0.00100035,88500.0,88499.0,2.44928214]
[1740516364443,0.0016966,88526.0,88525.0,0.20438461]
[1740516364648,0.0016966,88526.0,88525.0,0.64908246]
[1740516364890,0.0016966,88526.0,88525.0,0.64750141]
[1740516365463,0.0016966,88526.0,88525.0,0.63574141]
[1740516365670,0.0016966,88526.0,88525.0,0.64750141]
[1740516366046,0.0016966,88526.0,88525.0,0.63574141]
[1740516366248,0.0016966,88526.0,88525.0,0.14868914]
[1740516366563,0.0016966,88526.0,88525.0,0.16044914]
[1740516366795,0.0016966,88526.0,88525.0,0.16744914]
[1740516366989,0.0026966,88526.0,88525.0,0.34389214]
[1740516367157,0.0026966,88526.0,88525.0,0.17444914]
[1740516367360,0.0026966,88526.0,88525.0,0.34547325]
[1740516367562,0.0026966,88526.0,88525.0,0.34389214]
[1740516368226,0.0026966,88526.0,88525.0,0.46839353]
[1740516368952,0.0026966,88526.0,88525.0,0.76839353]
[1740516369154,0.0026966,88526.0,88525.0,0.86839353]
[1740516369370,0.00260012,88526.0,88525.0,0.86839353]
[1740516369503,0.00260012,88526.0,88525.0,0.76839353]
[1740516369905,0.00260012,88526.0,88525.0,0.62349138]
[1740516370130,0.00260012,88526.0,88525.0,0.84389214]
[1740516370346,0.00260012,88526.0,88525.0,0.86794961]
[1740516370699,5.9e-07,88526.0,88525.0,0.99144961]
[1740516370899,5.9e-07,88526.0,88525.0,2.49144961]
[1740516371328,0.001697,88539.0,88538.0,0.68981876]
[1740516371599,0.00182352,88539.0,88538.0,1.07586714]
[1740516372416,0.0016964,88558.0,88557.0,0.18978276]
[1740516372613,0.00211796,88558.0,88557.0,0.82983114]
[1740516373068,5.6e-07,88567.0,88566.0,0.68976576]
[1740516373276,0.00012695,88567.0,88566.0,0.81805414]
[1740516373595,0.00012695,88567.0,88566.0,2.31805414]
[1740516373812,0.001698,88571.0,88570.0,0.68975776]
[1740516374022,0.001698,88571.0,88570.0,0.80350529]
[1740516374223,6e-07,88573.0,88572.0,0.75389461]
[1740516374597,6e-07,88573.0,88572.0,0.86764214]
[1740516375006,6e-07,88573.0,88572.0,0.8948228]
[1740516375180,8e-07,88578.0,88577.0,0.82358561]
[1740516375481,7.94e-05,88580.0,88579.0,0.68974076]
[1740516375678,7.94e-05,88580.0,88579.0,0.80348829]
[1740516375836,8e-07,88589.0,88588.0,0.22040076]
[1740516376036,8e-07,88589.0,88588.0,1.25465929]
[1740516376251,8e-07,88589.0,88588.0,1.30445929]
[1740516376782,0.0016978,88615.0,88612.0,0.20421861]
[1740516376997,0.0016978,88615.0,88612.0,0.51058548]
[1740516377169,0.00182182,88613.0,88612.0,0.90900614]
[1740516377379,0.02398023,88646.0,88643.0,0.02040076]
[1740516377540,0.00182295,88644.0,88643.0,0.31790714]
[1740516377753,0.00182295,88644.0,88643.0,0.61790714]
[1740516378188,0.00182295,88644.0,88643.0,0.14868914]
[1740516378393,0.00182295,88644.0,88643.0,0.31512629]
[1740516378594,0.00182295,88644.0,88643.0,0.32112629]
[1740516378816,0.00182295,88644.0,88643.0,0.33566714]
[1740516378994,0.00182295,88644.0,88643.0,0.81506714]
[1740516379210,0.00182295,88644.0,88643.0,0.91506714]
[1740516379942,0.00182295,88644.0,88643.0,0.16740914]
[1740516380144,0.00182295,88644.0,88643.0,0.17440914]
[1740516380350,0.00182295,88644.0,88643.0,0.12774753]
[1740516380569,0.0016962,88656.0,88648.0,0.02040076]
[1740516380773,0.0016962,88656.0,88643.0,0.12074753]
[1740516380774,0.169216,88644.0,88643.0,0.03440076]
[1740516380984,0.469216,88644.0,88643.0,0.02740076]
[1740516381193,0.3,88644.0,88633.0,0.02040076]
[1740516381490,0.3,88644.0,88643.0,0.03440076]
[1740516381696,0.169202,88651.0,88650.0,0.02040076]
[1740516381902,0.00211726,88656.0,88650.0,0.02040076]
[1740516382124,0.1,88701.0,88666.0,0.02040076]
[1740516382313,0.169164,88671.0,88670.0,0.02040076]
[1740516382898,0.169187,88659.0,88658.0,0.02040076]
[1740516383081,0.169216,88644.0,88638.0,0.01172]
[1740516383285,0.22559,88657.0,88640.0,0.01454085]
[1740516383538,0.169197,88654.0,88653.0,0.02040076]
[1740516383686,0.3,88670.0,88648.0,0.02040076]
[1740516383885,0.3,88647.0,88646.0,0.02040076]
[1740516384088,0.16921,88647.0,88646.0,0.02040076]
[1740516384661,0.169221,88641.0,88640.0,0.00042106]
[1740516385651,0.16921,88647.0,88646.0,0.02040076]
[1740516386472,0.169218,88643.0,88642.0,0.02040076]
[1740516386696,0.169221,88641.0,88640.0,0.00042106]
[1740516387077,0.169221,88641.0,88640.0,0.02082182]
[1740516388044,0.0008462,88644.0,88640.0,0.02082182]
[1740516388276,0.0008462,88644.0,88643.0,0.02040076]
[1740516388423,0.0008462,88644.0,88643.0,0.14926825]
[1740516388641,0.1700622,88644.0,88643.0,0.01940076]
[1740516388939,0.1700622,88644.0,88643.0,0.31690714]
[1740516388940,0.0008462,88644.0,88643.0,0.31690714]
[1740516389318,0.0008462,88644.0,88643.0,0.79720714]
[1740516389542,2e-07,88644.0,88643.0,0.89720714]
[1740516390677,2e-07,88644.0,88643.0,2.39720714]
[1740516390888,0.16913,88690.0,88689.0,0.01940076]
[1740516391236,0.169125,88692.0,88691.0,0.01940076]
[1740516392047,0.16925129,88692.0,88691.0,0.01940076]
[1740516392924,0.169163,88672.0,88658.0,0.01454085]
[1740516393129,0.169155,88676.0,88675.0,0.01940076]
[1740516393298,0.30012629,88692.0,88656.0,0.01172]
[1740516393508,0.30012629,88692.0,88643.0,0.007]
[1740516393509,0.1,88688.0,88643.0,0.007]
[1740516393707,0.169216,88644.0,88643.0,0.007]
[1740516393904,0.045,88702.0,88668.0,0.01940076]
[1740516394067,0.045,88702.0,88677.0,0.01940076]
[1740516394265,0.469151,88678.0,88677.0,0.01940076]
[1740516394543,0.007,88692.0,88658.0,0.007]
[1740516394682,0.169155,88676.0,88675.0,0.01940076]
[1740516394864,0.3,88691.0,88632.0,0.0803]
[1740516395066,0.169211,88647.0,88637.0,0.11374753]
[1740516395428,0.3,88690.0,88637.0,0.11374753]
[1740516395747,0.3,88677.0,88640.0,0.01940076]
[1740516395935,0.3,88677.0,88632.0,0.0803]
[1740516395936,0.169225,88639.0,88638.0,0.01940076]
[1740516396146,0.169258,88622.0,88621.0,0.01172]
[1740516396620,0.3,88657.0,88648.0,0.01940076]
[1740516396782,0.469206,88649.0,88648.0,0.01940076]
[1740516396984,0.169206,88649.0,88648.0,0.01940076]
[1740516397201,0.169206,88649.0,88619.0,0.00157957]
[1740516397202,0.169185,88660.0,88659.0,0.01940076]
[1740516397599,0.469185,88660.0,88659.0,0.01940076]
[1740516397816,0.169185,88660.0,88659.0,0.01940076]
[1740516398023,0.169185,88660.0,88659.0,0.01240076]
[1740516398159,0.16917,88668.0,88667.0,0.01240076]
[1740516398367,0.46917,88668.0,88667.0,0.01240076]
[1740516398750,0.46917,88668.0,88639.0,1.087332]
[1740516398751,0.169181,88662.0,88661.0,0.01240076]
[1740516398950,0.69473,88668.0,88667.0,0.01240076]
[1740516399156,0.169214,88645.0,88644.0,0.01454085]
[1740516399358,0.169214,88645.0,88644.0,0.12828838]
[1740516399581,0.169214,88645.0,88644.0,0.14068914]
[1740516399788,0.394819,88648.0,88647.0,0.02694161]
[1740516399996,0.169208,88648.0,88647.0,0.02694161]
[1740516400392,0.169208,88648.0,88647.0,0.02736267]
[1740516400596,0.002,88668.0,88665.0,0.01240076]
[1740516400816,0.469174,88666.0,88665.0,0.01240076]
[1740516401056,0.469174,88666.0,88665.0,0.01140076]
[1740516401472,0.169174,88666.0,88665.0,0.01140076]
[1740516402105,0.469176,88665.0,88664.0,0.01140076]
[1740516402409,0.3,88638.0,88617.0,0.56673476]
[1740516402606,0.169252,88625.0,88617.0,0.03013476]
[1740516403661,0.169251,88626.0,88617.0,0.03013476]
[1740516403871,0.02452437,88632.0,88624.0,0.00481835]
[1740516404099,0.169252,88625.0,88624.0,0.00481835]
[1740516404324,0.169252,88625.0,88624.0,0.00781835]
[1740516404725,0.169252,88625.0,88624.0,0.00481835]
[1740516404952,0.169252,88625.0,88624.0,0.00681835]
[1740516405325,0.169252,88625.0,88624.0,0.00481835]
[1740516405528,0.169252,88625.0,88624.0,0.00181835]
[1740516405850,0.169252,88625.0,88624.0,0.00381835]
[1740516406325,0.169252,88625.0,88624.0,0.00181835]
[1740516406526,0.169252,88625.0,88624.0,0.00481835]
[1740516406744,0.169252,88625.0,88624.0,0.00681835]
[1740516406943,0.469252,88625.0,88624.0,3.5e-07]
[1740516408117,0.469252,88625.0,88624.0,0.00100035]
[1740516408532,0.469252,88625.0,88624.0,0.001]
[1740516409068,0.469252,88625.0,88624.0,0.002]
[1740516411227,0.169252,88625.0,88624.0,0.002]
[1740516411452,0.169252,88625.0,88624.0,0.0036924]
[1740516411701,0.02411077,88632.0,88624.0,0.0036924]
[1740516411859,0.1700982,88625.0,88624.0,0.0036924]
[1740516412787,0.1700982,88625.0,88624.0,0.0026924]
[1740516414121,0.225667,88627.0,88624.0,0.0026924]
[1740516414122,0.20803435,88627.0,88624.0,0.0026924]
[1740516414479,0.169252,88625.0,88624.0,0.0026924]